bitfinex-derivatives/quotes_SOLF0:USTF0_20250516
["timestamp","ask_amount","ask_price","bid_price","bid_amount"]
[1747409767719,120.46,172.37,172.28,8.45647521]
[1747409768026,60.22,172.39,172.36,5.7996]
[1747409768419,133.93719066,172.43,172.34,8.45647521]
[1747409768720,194.15719066,172.43,172.35,120.46]
[1747409768927,120.46,172.45,172.37,8.45647521]
[1747409769220,1.9051,172.5,172.37,8.45647521]
[1747409769221,1.9051,172.5,172.4,8.45647521]
[1747409769526,60.2,172.49,172.41,60.24]
[1747409769725,60.2,172.49,172.47,5.7961]
[1747409769923,60.2,172.54,172.46,8.45647521]
[1747409770224,60.2,172.54,172.47,60.24]
[1747409770423,60.2,172.54,172.45,60.24]
[1747409770923,60.2,172.54,172.52,5.7942]
[1747409771325,1.9936,172.56,172.49,60.24]
[1747409771521,60.2,172.58,172.55,5.7934]
[1747409771827,60.2,172.59,172.49,60.24]
[1747409772022,60.2,172.6,172.49,60.24]
[1747409772325,60.2,172.63,172.52,13.49598686]
[1747409772528,60.2,172.63,172.53,124.1796]
[1747409773428,60.18,172.7,172.56,13.49598686]
[1747409773627,60.18,172.7,172.57,122.3544]
[1747409773831,65.9687,172.7,172.64,5.7902]
[1747409774127,65.9687,172.7,172.63,60.2]
[1747409774322,60.18,172.7,172.63,60.2]
[1747409774727,65.9771,172.72,172.63,60.2]
[1747409775030,60.18,172.71,172.63,60.2]
[1747409775224,5.7887,172.7,172.63,60.2]
[1747409775728,5.7887,172.7,172.63,65.9905]
[1747409776127,124.3024,172.72,172.63,60.2]
[1747409776722,64.1024,172.72,172.63,60.2]
[1747409777227,69.8902,172.72,172.65,5.7901]
[1747409777628,64.1024,172.72,172.63,60.2]
[1747409778326,60.12,172.74,172.63,73.69598686]
[1747409778527,60.12,172.74,172.63,75.53308686]
[1747409779831,5.7877,172.72,172.63,75.53308686]
[1747409780123,60.12,172.74,172.63,75.53308686]
[1747409780631,60.16,172.77,172.63,75.53308686]
[1747409780929,5.7874,172.73,172.67,5.7891]
[1747409781126,5.7874,172.73,172.67,65.8691]
[1747409781329,5.787,172.75,172.67,60.08]
[1747409781629,60.1,172.75,172.67,60.08]
[1747409782731,5.7871,172.74,172.67,60.08]
[1747409782932,60.1,172.75,172.67,60.08]
[1747409783134,5.7879,172.72,172.67,65.8692]
[1747409784134,5.7875,172.73,172.68,5.789]
[1747409784632,5.7871,172.74,172.68,5.789]
[1747409785033,60.1,172.75,172.68,5.789]
[1747409785923,5.7875,172.73,172.68,5.789]
[1747409786233,60.1,172.75,172.68,5.789]
[1747409786633,5.7876,172.73,172.68,5.789]
[1747409787233,5.7877,172.72,172.67,65.8693]
[1747409787434,5.7877,172.72,172.67,60.08]
[1747409787732,5.7884,172.7,172.67,60.08]
[1747409787931,60.06,172.71,172.63,60.06]
[1747409788131,60.06,172.7,172.63,60.06]
[1747409788328,5.7899,172.66,172.61,5.7913]
[1747409788929,5.79,172.65,172.61,5.7913]
[1747409789137,60.06,172.66,172.58,60.06]
[1747409791636,5.7906,172.64,172.59,5.792]
[1747409791832,1.9955,172.69,172.58,120.12]
[1747409792039,62.0555,172.69,172.58,120.12]
[1747409792238,5.7898,172.66,172.58,120.12]
[1747409793039,5.7898,172.66,172.62,5.791]
[1747409793233,5.7898,172.66,172.58,120.12]
[1747409793438,62.0555,172.69,172.58,120.12]
[1747409794142,5.7899,172.66,172.61,5.7913]
[1747409794336,62.0555,172.69,172.58,120.12]
[1747409794542,5.7905,172.64,172.59,5.792]
[1747409794935,60.06,172.65,172.61,5.7913]
[1747409795941,65.85,172.65,172.61,5.7913]
[1747409796144,60.06,172.65,172.58,120.12]
[1747409796543,60.06,172.65,172.58,60.06]
[1747409797141,60.06,172.65,172.55,60.06]
[1747409797335,60.06,172.65,172.53,60.06]
[1747409797737,60.06,172.65,172.53,65.854]
[1747409798045,5.7928,172.57,172.53,60.06]
[1747409798243,60.06,172.6,172.53,65.8538]
[1747409798445,60.06,172.59,172.5,61.965]
[1747409798644,5.7932,172.56,172.5,61.965]
[1747409798844,61.8764,172.59,172.5,61.965]
[1747409799042,5.7944,172.52,172.5,60.06]
[1747409799343,5.7944,172.52,172.47,65.856]
[1747409799540,60.06,172.55,172.46,60.06]
[1747409799740,65.8535,172.55,172.46,60.06]
[1747409800042,60.06,172.55,172.46,60.06]
[1747409800342,60.06,172.55,172.47,60.06]
[1747409801239,65.8536,172.55,172.5,5.7947]
[1747409801440,60.06,172.55,172.46,60.06]
[1747409801645,60.06,172.55,172.46,120.12]
[1747409802155,5.7944,172.52,172.48,5.7956]
[1747409802546,5.7944,172.52,172.46,120.12]
[1747409802739,60.06,172.51,172.45,5.7966]
[1747409802941,60.06,172.51,172.44,60.08]
[1747409803248,5.7957,172.49,172.44,65.8768]
[1747409803548,60.06,172.51,172.44,60.08]
[1747409803845,5.7959,172.48,172.44,60.08]
[1747409804346,5.7959,172.48,172.44,65.877]
[1747409804948,5.7959,172.48,172.44,60.08]
[1747409805147,60.06,172.51,172.44,60.08]
[1747409805548,60.08,172.54,172.44,120.16]
[1747409805849,60.08,172.54,172.45,3.994]
[1747409806351,60.1,172.57,172.45,3.994]
[1747409806649,65.873,172.57,172.45,3.994]
[1747409806940,60.08,172.57,172.45,3.994]
[1747409807348,60.1,172.56,172.45,3.994]
[1747409807549,60.1,172.56,172.49,5.7953]
[1747409807749,5.7937,172.54,172.45,3.994]
[1747409807943,60.08,172.53,172.45,3.994]
[1747409809249,60.08,172.53,172.48,5.7954]
[1747409809446,60.08,172.53,172.45,3.994]
[1747409809751,60.08,172.53,172.49,5.7952]
[1747409809948,5.7944,172.52,172.45,3.994]
[1747409810450,60.08,172.53,172.48,5.7954]
[1747409810651,65.8742,172.53,172.48,5.7954]
[1747409810848,60.08,172.53,172.48,5.7954]
[1747409811050,60.08,172.53,172.49,5.7954]
[1747409811350,60.08,172.53,172.45,3.994]
[1747409811752,65.8743,172.53,172.45,3.994]
[1747409812149,60.08,172.53,172.45,3.994]
[1747409812549,60.06,172.52,172.42,560.46]
[1747409812754,60.06,172.52,172.42,60.06]
[1747409813047,3.7485,172.51,172.42,60.06]
[1747409813356,3.7485,172.51,172.43,5.7972]
[1747409813545,3.7485,172.51,172.42,60.06]
[1747409813743,1.9092,172.5,172.42,60.06]
[1747409813951,60.08,172.49,172.42,60.06]
[1747409815355,5.7963,172.47,172.42,60.06]
[1747409815857,5.7971,172.45,172.42,60.06]
[1747409816153,65.8771,172.45,172.39,61.9547]
[1747409816353,60.08,172.45,172.39,61.9547]
[1747409816659,60.08,172.45,172.41,5.7979]
[1747409817650,60.08,172.45,172.39,61.9547]
[1747409817858,60.08,172.45,172.39,60.08]
[1747409818251,5.7978,172.42,172.39,60.08]
[1747409818448,5.7978,172.42,172.36,63.9301]
[1747409818857,60.08,172.45,172.36,60.08]
[1747409819559,5.7978,172.42,172.38,5.7989]
[1747409819767,60.08,172.45,172.38,5.7989]
[1747409819957,60.08,172.45,172.36,60.08]
[1747409820158,60.08,172.45,172.4,5.7982]
[1747409820462,60.08,172.45,172.36,60.08]
[1747409820856,60.1,172.44,172.36,60.08]
[1747409821055,61.9186,172.44,172.36,60.08]
[1747409821256,61.9186,172.44,172.33,62.0843]
[1747409822564,60.1,172.44,172.41,5.798]
[1747409822770,60.1,172.44,172.33,62.0843]
[1747409822771,1.8186,172.48,172.37,60.1]
[1747409822959,60.1,172.47,172.38,60.1]
[1747409823266,60.1,172.47,172.39,1.9925]
[1747409823559,62.0092,172.5,172.39,1.9925]
[1747409823760,60.1,172.49,172.39,1.9925]
[1747409823967,60.1,172.49,172.4,1.8988]
[1747409824167,60.1,172.49,172.39,62.0925]
[1747409824369,60.1,172.49,172.39,1.9925]
[1747409825364,5.7974,172.44,172.4,5.7982]
[1747409825870,60.1,172.45,172.38,60.1]
[1747409826971,60.1,172.45,172.41,5.7979]
[1747409827173,60.1,172.45,172.38,60.1]
[1747409827675,65.8969,172.45,172.38,60.1]
[1747409827877,60.1,172.45,172.38,60.1]
[1747409828271,65.8968,172.45,172.42,5.7976]
[1747409828776,5.7974,172.43,172.4,5.7984]
[1747409829076,60.1,172.45,172.38,60.1]
[1747409829978,60.1,172.45,172.43,5.7972]
[1747409830171,60.1,172.45,172.38,60.1]
[1747409830474,5.7975,172.43,172.4,5.7984]
[1747409830675,60.1,172.45,172.38,60.1]
[1747409830976,5.7974,172.43,172.4,5.7982]
[1747409831172,60.1,172.45,172.38,60.1]
[1747409832881,65.8969,172.45,172.38,60.1]
[1747409833273,60.1,172.45,172.38,60.1]
[1747409834880,60.1,172.46,172.38,60.1]
[1747409835188,5.7973,172.44,172.41,5.798]
[1747409835384,60.1,172.46,172.38,60.1]
[1747409835978,1.9092,172.5,172.38,60.1]
[1747409836178,62.0092,172.5,172.38,60.1]
[1747409836380,60.1,172.5,172.47,5.7959]
[1747409836579,60.1,172.5,172.4,60.1]
[1747409837381,5.7972,172.44,172.4,60.1]
[1747409837879,5.7972,172.44,172.41,5.7978]
[1747409838088,60.1,172.46,172.39,60.1]
[1747409839181,65.8967,172.46,172.39,60.1]
[1747409839381,60.1,172.46,172.39,60.1]
[1747409839788,5.7971,172.44,172.41,5.7979]
[1747409839989,60.1,172.46,172.41,5.7979]
[1747409840289,5.7971,172.44,172.41,5.7979]
[1747409840492,60.1,172.46,172.41,5.7979]
[1747409840796,5.7973,172.44,172.41,5.7979]
[1747409841088,60.1,172.46,172.4,5.7983]
[1747409841288,60.1,172.46,172.39,60.1]
[1747409841489,62.0541,172.46,172.34,60.1]
[1747409841790,3.7054,172.45,172.34,60.1]
[1747409842190,5.7975,172.43,172.4,5.7982]
[1747409843697,5.7978,172.42,172.39,5.7986]
[1747409843995,5.7978,172.42,172.34,60.1]
[1747409844194,1.8217,172.45,172.34,60.1]
[1747409844393,1.8217,172.45,172.4,5.7982]
[1747409845994,1.8217,172.45,172.39,5.7986]
[1747409846192,1.8217,172.45,172.34,60.1]
[1747409846594,5.7976,172.43,172.4,5.7982]
[1747409847194,1.9541,172.46,172.3,17.51238686]
[1747409847393,60.1,172.45,172.35,60.1]
[1747409848297,5.7971,172.44,172.42,5.7977]
[1747409848498,60.1,172.45,172.42,5.7977]
[1747409848799,60.1,172.45,172.3,4.0164]
[1747409849004,3.8785,172.44,172.3,4.0164]
[1747409849205,73.62586203,172.43,172.3,4.0164]
[1747409849496,8.45365588,172.41,172.3,4.0164]
[1747409849695,60.1,172.4,172.3,4.0164]
[1747409849896,5.7992,172.38,172.34,5.8002]
[1747409850100,60.1,172.4,172.3,4.0164]
[1747409850804,5.7993,172.38,172.3,4.0164]
[1747409850993,60.1,172.4,172.3,4.0164]
[1747409851503,5.7993,172.38,172.35,5.7999]
[1747409851696,60.1,172.4,172.33,60.1]
[1747409851900,3.8785,172.44,172.33,60.1]
[1747409852104,5.7986,172.4,172.37,5.7992]
[1747409852401,5.7986,172.4,172.33,60.1]
[1747409852402,120.2,172.43,172.33,60.1]
[1747409852589,5.7984,172.4,172.37,5.7994]
[1747409853397,5.7984,172.4,172.38,5.7991]
[1747409853696,5.7984,172.4,172.33,60.1]
[1747409853697,60.1,172.42,172.33,60.1]
[1747409854101,5.7986,172.4,172.33,60.1]
[1747409854805,60.1,172.42,172.33,60.1]
[1747409855301,5.7981,172.41,172.38,5.7988]
[1747409855802,60.1,172.44,172.41,5.7981]
[1747409856194,5.7975,172.43,172.4,5.7983]
[1747409856394,60.1,172.44,172.4,5.7983]
[1747409856701,65.8972,172.44,172.41,5.7979]
[1747409857100,62.0541,172.46,172.37,60.1]
[1747409857394,5.7979,172.42,172.39,5.7986]
[1747409858098,60.1,172.45,172.37,60.1]
[1747409858707,60.1,172.45,172.33,60.1]
[1747409859399,11.5942,172.44,172.33,60.1]
[1747409859599,13.5215776,172.42,172.3,64.1164]
[1747409859903,124.0288,172.41,172.3,64.1164]
[1747409860296,124.0288,172.41,172.3,60.1]
[1747409861005,124.0288,172.41,172.31,5.8012]
[1747409861906,5.8005,172.34,172.3,65.9017]
[1747409862103,60.1,172.34,172.3,60.1]
[1747409862304,60.1,172.34,172.23,3.9674]
[1747409862611,5.8023,172.29,172.26,5.8031]
[1747409862904,60.1,172.3,172.24,60.1]
[1747409863100,60.1,172.3,172.26,5.8029]
[1747409863101,65.9019,172.3,172.26,5.8029]
[1747409863405,60.1,172.3,172.24,60.1]
[1747409863904,60.1,172.3,172.25,5.8032]
[1747409864104,60.1,172.3,172.24,60.1]
[1747409864608,5.8022,172.29,172.26,5.8029]
[1747409864810,60.1,172.3,172.26,5.8029]
[1747409864994,60.1,172.3,172.22,1.9194]
[1747409865198,60.1,172.3,172.23,5.8041]
[1747409865399,60.12,172.29,172.21,60.12]
[1747409865603,5.8039,172.24,172.21,60.12]
[1747409865804,60.12,172.26,172.21,60.12]
[1747409866108,60.12,172.26,172.18,63.8334]
[1747409866405,1.8156,172.28,172.18,63.8334]
[1747409866609,60.12,172.27,172.18,63.8334]
[1747409867203,5.8036,172.25,172.22,5.8044]
[1747409867808,5.804,172.24,172.2,5.8051]
[1747409868002,60.12,172.27,172.18,63.8334]
[1747409868199,60.12,172.27,172.18,62.006]
[1747409868505,60.14,172.26,172.18,65.9258]
[1747409868700,60.14,172.26,172.18,5.8058]
[1747409869102,60.14,172.26,172.15,62.0621]
[1747409869510,60.14,172.26,172.18,5.8056]
[1747409869810,60.14,172.26,172.15,62.0621]
[1747409870311,1.9263,172.25,172.16,5.8064]
[1747409870704,1.9263,172.25,172.15,65.9468]
[1747409871006,1.9753,172.24,172.12,60.14]
[1747409871205,60.12,172.23,172.12,60.14]
[1747409871406,60.14,172.22,172.12,60.14]
[1747409871616,5.8069,172.15,172.09,65.6575]
[1747409871912,60.14,172.16,172.09,60.14]
[1747409872209,5.8078,172.13,172.1,5.8085]
[1747409872610,5.8078,172.13,172.09,60.14]
[1747409872812,60.14,172.15,172.09,60.14]
[1747409873310,60.14,172.15,172.1,5.8083]
[1747409873504,5.8075,172.14,172.1,5.8083]
[1747409873911,60.14,172.15,172.09,5.8088]
[1747409874113,60.14,172.15,172.06,60.14]
[1747409874612,65.9471,172.15,172.11,5.8079]
[1747409875009,60.14,172.15,172.06,60.14]
[1747409875206,60.16,172.15,172.12,5.8076]
[1747409875515,60.16,172.15,172.06,60.14]
[1747409875805,5.8059,172.18,172.15,5.8067]
[1747409876011,60.16,172.18,172.1,60.14]
[1747409876209,60.16,172.18,172.11,5.6968]
[1747409876411,60.16,172.18,172.17,5.8062]
[1747409879213,60.16,172.23,172.18,5.8057]
[1747409879413,60.16,172.22,172.14,60.16]
[1747409879613,3.9711,172.24,172.14,60.16]
[1747409879809,60.16,172.23,172.14,60.16]
[1747409880711,65.9643,172.23,172.14,60.16]
[1747409881112,542.0,172.61,172.16,13.54041008]
[1747409881410,1.1591515,172.54,172.41,13.54041008]
[1747409881615,1.1591515,172.54,172.45,13.54041008]
[1747409881921,1.868e-05,172.53,172.46,128.76]
[1747409882211,64.96,172.55,172.38,64.22]
[1747409882422,3.7793,172.54,172.39,64.22]
[1747409882615,5.6477,172.54,172.4,64.22]
[1747409882823,66.33921868,172.53,172.41,64.22]
[1747409883005,1.15928587,172.52,172.41,64.22]
[1747409883205,78.89969595,172.52,172.33,13.54041008]
[1747409883408,21.9594677,172.48,172.32,501.68]
[1747409883617,134.99962196,172.47,172.33,66.92]
[1747409884013,1.847,172.46,172.33,66.92]
[1747409884219,5.7968,172.45,172.34,66.92]
[1747409884412,1.847,172.46,172.32,568.6]
[1747409884617,25.9250677,172.44,172.32,568.6]
[1747409884818,66.92,172.43,172.32,66.92]
[1747409885014,69.0,172.42,172.32,66.92]
[1747409885214,5.7986,172.4,172.32,66.92]
[1747409885418,69.0,172.42,172.24,501.42]
[1747409885618,69.0,172.42,172.25,66.92]
[1747409885818,5.7995,172.37,172.25,66.92]
[1747409886117,66.92,172.43,172.25,66.92]
[1747409886625,69.0,172.42,172.25,66.92]
[1747409886820,5.7983,172.41,172.25,66.92]
[1747409887122,69.0,172.42,172.26,1.8636]
[1747409887320,3.9656,172.44,172.27,22.14871989]
[1747409887515,68.92,172.52,172.35,21.95143539]
[1747409887710,21.95157522,172.51,172.36,641.3125]
[1747409887911,21.95724405,172.49,172.37,135.9]
[1747409888116,21.95451227,172.5,172.37,135.9]
[1747409888316,68.92,172.52,172.37,135.9]
[1747409889117,21.95451227,172.5,172.37,66.92]
[1747409889313,66.9,172.5,172.37,66.92]
[1747409889517,21.96289525,172.46,172.37,66.92]
[1747409889718,68.9,172.45,172.37,66.92]
[1747409889928,72.6058,172.45,172.37,66.92]
[1747409890119,5.7991,172.38,172.37,66.92]
[1747409890525,68.84,172.4,172.33,66.9]
[1747409890725,68.84,172.4,172.34,1.16049669]
[1747409892326,5.8001,172.35,172.34,1.16049669]
[1747409893430,5.7998,172.36,172.34,1.16049669]
[1747409893624,68.84,172.4,172.34,1.16049669]
[1747409893926,5.8001,172.35,172.34,1.16049669]
[1747409894125,68.6,172.35,172.18,21.96289525]
[1747409894330,68.6,172.35,172.28,66.9]
[1747409895626,68.6,172.35,172.3,5.8017]
[1747409895829,68.6,172.35,172.28,66.9]
[1747409896227,5.8008,172.33,172.28,66.9]
[1747409896528,68.6,172.35,172.28,66.9]
[1747409897228,68.6,172.35,172.3,5.8018]
[1747409897424,68.6,172.35,172.28,66.9]
[1747409897727,68.6,172.35,172.3,5.8018]
[1747409897928,68.6,172.35,172.28,66.9]
[1747409898329,74.4003,172.35,172.29,5.8018]
[1747409898929,5.8006,172.34,172.29,5.8018]
[1747409899131,68.6,172.35,172.28,66.9]
[1747409899425,74.4002,172.35,172.28,66.9]
[1747409899629,68.6,172.35,172.31,5.8013]
[1747409900323,68.6,172.35,172.3,5.8017]
[1747409900629,68.6,172.35,172.28,66.9]
[1747409901431,5.8009,172.33,172.28,72.7022]
[1747409901929,21.96289525,172.34,172.24,66.9]
[1747409902136,5.8022,172.29,172.25,5.8034]
[1747409902425,68.06,172.3,172.24,66.9]
[1747409902732,68.06,172.3,172.26,5.8028]
[1747409903029,68.06,172.3,172.27,5.8028]
[1747409903430,68.06,172.3,172.24,66.9]
[1747409904133,73.8619,172.3,172.26,5.8031]
[1747409904322,68.06,172.3,172.24,66.9]
[1747409904631,5.8024,172.29,172.24,72.7036]
[1747409905019,68.06,172.3,172.24,66.9]
[1747409905226,68.06,172.3,172.27,5.8027]
[1747409906035,68.06,172.3,172.24,66.9]
[1747409906223,1.8534,172.34,172.24,66.9]
[1747409906420,67.7,172.33,172.24,66.9]
[1747409906634,67.7,172.33,172.29,5.8019]
[1747409906829,67.7,172.33,172.24,66.9]
[1747409907131,67.7,172.33,172.3,5.8017]
[1747409907731,1.8534,172.34,172.24,66.9]
[1747409907926,69.4334,172.34,172.24,66.9]
[1747409908331,75.2339,172.34,172.24,66.9]
[1747409908527,69.4334,172.34,172.24,66.9]
[1747409909030,5.8008,172.33,172.3,5.8018]
[1747409909232,69.4334,172.34,172.3,5.8018]
[1747409909829,69.4334,172.34,172.29,5.802]
[1747409910031,69.4334,172.34,172.24,66.9]
[1747409910232,69.4334,172.34,172.29,5.8021]
[1747409910530,69.4334,172.34,172.24,66.9]
[1747409910832,5.8014,172.32,172.28,5.8024]
[1747409911031,69.4334,172.34,172.24,66.9]
[1747409912133,5.8014,172.31,172.28,5.8025]
[1747409912326,69.4334,172.34,172.24,66.9]
[1747409912526,5.8014,172.32,172.28,5.8022]
[1747409912832,69.4334,172.34,172.28,5.8022]
[1747409913027,69.4334,172.34,172.26,5.8029]
[1747409913236,1.9899,172.33,172.24,66.9]
[1747409913531,1.9899,172.33,172.22,5.8043]
[1747409913729,21.96289525,172.29,172.2,67.06]
[1747409914029,5.8044,172.23,172.2,67.06]
[1747409914234,67.04,172.28,172.2,67.06]
[1747409914429,1.8721,172.27,172.2,67.06]
[1747409914630,5.8044,172.23,172.2,67.06]
[1747409915623,67.02,172.23,172.16,67.06]
[1747409916036,5.8046,172.22,172.18,5.8058]
[1747409916334,67.02,172.23,172.16,67.06]
[1747409917536,72.8242,172.23,172.16,67.06]
[1747409917733,67.02,172.23,172.16,67.06]
[1747409918135,72.8242,172.23,172.16,67.06]
[1747409918535,67.02,172.23,172.16,67.06]
[1747409919340,67.02,172.23,172.18,5.8058]
[1747409919635,67.02,172.23,172.16,67.06]
[1747409920329,5.8046,172.22,172.18,5.8058]
[1747409920539,67.02,172.23,172.18,5.8058]
[1747409920839,5.8048,172.21,172.18,5.8058]
[1747409921034,5.8048,172.21,172.19,5.8055]
[1747409921539,72.8244,172.23,172.2,5.8048]
[1747409922239,72.8244,172.23,172.19,5.8054]
[1747409922240,5.8045,172.22,172.19,5.8054]
[1747409922443,67.02,172.23,172.16,67.06]
[1747409922745,13.54693964,172.18,171.91,52.3328]
[1747409922938,137.5263,172.17,172.02,68.2426555]
[1747409923334,5.808,172.12,172.08,5.8092]
[1747409923544,5.808,172.12,172.03,1.16258792]
[1747409923743,66.6,172.11,172.03,1.16258792]
[1747409925842,5.8089,172.09,172.05,5.81]
[1747409926044,66.6,172.11,172.06,1.16238521]
[1747409927842,72.4083,172.11,172.07,5.8094]
[1747409928045,66.6,172.11,172.08,1.16225011]
[1747409928338,72.1482,172.11,172.08,1.16225011]
[1747409928534,66.34,172.11,172.08,1.16225011]
[1747409929038,22.04772273,172.1,171.98,67.12]
[1747409929231,22.04772273,172.1,171.99,1.1628583]
[1747409929436,5.8119,172.0,171.99,1.1628583]
[1747409929931,66.24,172.01,171.99,1.1628583]
[1747409930941,5.8119,172.0,171.99,1.1628583]
[1747409931339,5.8136,171.95,171.94,67.12]
[1747409931640,67.14,172.0,171.89,67.14]
[1747409931831,5.8135,171.96,171.91,5.8149]
[1747409932139,66.46,171.99,171.89,67.14]
[1747409932343,22.04772273,171.98,171.89,72.9555]
[1747409932844,22.04772273,171.98,171.9,5.8153]
[1747409933135,22.04772273,171.98,171.89,67.14]
[1747409933532,22.04772273,171.98,171.85,67.14]
[1747409934137,5.8145,171.93,171.85,67.14]
[1747409934344,66.42,171.92,171.85,67.14]
[1747409934537,67.16,171.94,171.85,67.14]
[1747409934538,66.4,171.94,171.85,67.14]
[1747409934735,66.4,171.94,171.85,133.54]
[1747409935639,66.4,171.94,171.91,5.8146]
[1747409935944,66.42,171.95,171.85,133.54]
[1747409936643,66.42,171.95,171.85,67.14]
[1747409936944,5.8153,171.9,171.85,67.14]
[1747409937139,66.42,171.9,171.85,67.14]
[1747409937344,66.42,171.9,171.85,5.8167]
[1747409937545,5.8159,171.89,171.85,5.8167]
[1747409937839,66.42,171.9,171.81,67.16]
[1747409938143,5.8159,171.89,171.81,67.16]
[1747409938447,66.42,171.9,171.81,67.16]
[1747409938745,5.8159,171.89,171.81,67.16]
[1747409938950,66.42,171.9,171.85,5.8167]
[1747409939141,66.42,171.9,171.81,67.16]
[1747409939335,72.2354,171.9,171.81,67.16]
[1747409939535,72.2354,171.9,171.86,5.8164]
[1747409939838,66.42,171.9,171.81,67.16]
[1747409940245,5.8156,171.89,171.81,67.16]
[1747409940545,66.42,171.9,171.81,67.16]
[1747409940945,88.46772273,171.9,171.77,67.18]
[1747409941245,1.8707,171.89,171.77,67.18]
[1747409941550,1.8707,171.89,171.84,5.8172]
[1747409941551,66.12,171.88,171.84,5.8172]
[1747409941841,66.12,171.88,171.78,1.9591]
[1747409942452,5.8163,171.87,171.78,1.9591]
[1747409942948,5.8163,171.87,171.83,5.8174]
[1747409943252,66.12,171.88,171.78,1.9591]
[1747409943443,66.12,171.88,171.82,5.8177]
[1747409943643,5.817,171.85,171.77,67.18]
[1747409943842,66.12,171.88,171.77,67.18]
[1747409945350,5.8167,171.86,171.77,67.18]
[1747409945650,66.12,171.88,171.77,67.18]
[1747409945851,5.8168,171.86,171.77,67.18]
[1747409946041,66.12,171.88,171.77,67.18]
[1747409946248,1.8707,171.89,171.77,67.18]
[1747409946444,65.84,171.88,171.77,66.0]
[1747409946946,71.6561,171.88,171.77,66.0]
[1747409947144,65.84,171.88,171.77,66.0]
[1747409947451,17.50789342,171.94,171.77,66.0]
[1747409947649,69.9089,171.94,171.77,77.6394]
[1747409947845,3.9089,171.94,171.78,13.59899342]
[1747409948054,65.84,171.93,171.79,65.84]
[1747409948355,65.84,171.93,171.79,77.4778]
[1747409948954,65.84,171.93,171.89,5.8154]
[1747409949164,65.84,171.93,171.88,66.0]
[1747409950353,502.54,172.08,171.88,66.0]
[1747409950552,70.69695277,172.05,171.89,71.489]
[1747409950953,5.8116,172.01,171.89,71.489]
[1747409951256,70.69695277,172.05,171.89,71.489]
[1747409951560,5.8109,172.03,171.98,5.8125]
[1747409951760,70.69695277,172.05,171.96,66.0]
[1747409952254,5.8115,172.02,171.96,71.8132]
[1747409952453,66.0,172.02,171.89,5.669]
[1747409952758,66.0,172.02,171.91,66.0]
[1747409953455,5.8128,171.98,171.93,5.8142]
[1747409953656,65.84,171.97,171.91,66.0]
[1747409954159,65.8,172.01,171.91,66.0]